bitfinex/quotes_BTCUSD_20241119
["timestamp","ask_amount","ask_price","bid_price","bid_amount"]
[1732044092959,0.10906255,93687.0,93649.0,0.10906255]
[1732044093171,0.0762,93688.0,93654.0,0.01]
[1732044093373,0.04326945,93696.0,93659.0,0.01]
[1732044093588,0.04326945,93696.0,93661.0,0.01]
[1732044093792,0.0762,93703.0,93662.0,0.10906255]
[1732044094009,0.10906255,93702.0,93662.0,0.11068378]
[1732044094425,0.13283276,93702.0,93662.0,0.11068378]
[1732044094847,0.023,93701.0,93663.0,0.1]
[1732044095064,0.023,93699.0,93665.0,0.1]
[1732044095306,0.13206255,93699.0,93667.0,0.1]
[1732044095513,0.10906255,93698.0,93669.0,0.1]
[1732044095742,0.023,93702.0,93671.0,0.1]
[1732044095947,0.0792,93718.0,93673.0,0.11]
[1732044096178,0.0792,93718.0,93684.0,0.01]
[1732044096387,0.0792,93718.0,93685.0,0.10906255]
[1732044096631,0.18826255,93718.0,93686.0,0.1]
[1732044096851,0.10906255,93717.0,93686.0,0.10159501]
[1732044097276,0.10906255,93717.0,93686.0,0.1]
[1732044100935,0.001,93700.0,93698.0,0.01]
[1732044101160,0.001,93700.0,93699.0,0.20906255]
[1732044101371,0.001,93700.0,93699.0,0.99186454]
[1732044102485,0.001,93700.0,93699.0,1.16626654]
[1732044102714,0.001,93700.0,93699.0,0.99186454]
[1732044103028,0.001,93700.0,93699.0,1.07830154]
[1732044103665,0.001,93700.0,93699.0,1.12152927]
[1732044104737,0.0018565,93700.0,93699.0,1.12152927]
[1732044105172,0.0018565,93700.0,93699.0,1.11152927]
[1732044105411,0.0018565,93700.0,93699.0,1.10702927]
[1732044106051,0.0018565,93700.0,93699.0,1.09702927]
[1732044106258,0.0018565,93700.0,93699.0,0.12966473]
[1732044106752,1.96238183,93725.0,93699.0,0.12966473]
[1732044106993,0.13206255,93724.0,93699.0,0.12966473]
[1732044107648,0.13206255,93724.0,93700.0,0.1]
[1732044107874,0.023,93722.0,93700.0,0.1]
[1732044108103,0.023,93720.0,93699.0,0.12966473]
[1732044108327,0.10206255,93719.0,93699.0,0.12966473]
[1732044109502,0.01,93713.0,93699.0,0.086437]
[1732044109721,0.0812,93711.0,93699.0,0.086437]
[1732044109949,0.10906255,93710.0,93699.0,0.086437]
[1732044110390,0.0812,93711.0,93699.0,0.086437]
[1732044110391,0.023,93705.0,93699.0,0.086437]
[1732044110639,0.023,93703.0,93699.0,0.086437]
[1732044110845,0.023,93701.0,93699.0,0.086437]
[1732044111069,0.13206255,93700.0,93699.0,0.086437]
[1732044111512,0.10906255,93700.0,93699.0,0.086437]
[1732044112576,0.5483,93704.0,93699.0,0.086437]
[1732044113024,0.10906255,93703.0,93699.0,0.086437]
[1732044113228,0.001,93700.0,93699.0,0.086437]
[1732044113469,0.11006255,93700.0,93699.0,0.086437]
[1732044113682,0.11006255,93700.0,93689.0,0.02048793]
[1732044113889,0.11006255,93700.0,93671.0,0.01]
[1732044113890,0.10906255,93699.0,93671.0,0.01]
[1732044114335,0.001,93700.0,93672.0,0.10906255]
[1732044114571,0.001,93700.0,93673.0,0.0488]
[1732044114838,0.001,93700.0,93675.0,0.0914]
[1732044115037,0.001,93700.0,93681.0,0.01]
[1732044115261,0.001,93700.0,93680.0,0.01]
[1732044115942,0.001,93700.0,93671.0,0.03456407]
[1732044116158,0.001,93700.0,93675.0,0.1]
[1732044116374,0.0346471,93711.0,93703.0,0.004]
[1732044116595,0.10906255,93710.0,93703.0,0.004]
[1732044116828,0.023,93705.0,93703.0,0.004]
[1732044117035,0.10906255,93704.0,93703.0,0.004]
[1732044117461,0.10906255,93704.0,93672.0,0.0017116]
[1732044117462,0.023,93701.0,93672.0,0.0017116]
[1732044117687,0.01,93691.0,93672.0,0.0017116]
[1732044117909,0.13206255,93690.0,93672.0,0.0017116]
[1732044118626,0.023,93686.0,93672.0,0.0017116]
[1732044118845,0.023,93681.0,93672.0,0.0017116]
[1732044119051,0.65736255,93680.0,93672.0,0.0017116]
[1732044120815,0.01,93677.0,93672.0,0.0017116]
[1732044121032,0.14206255,93676.0,93672.0,0.0017116]
[1732044121246,0.01,93686.0,93672.0,0.0017116]
[1732044121462,0.03426607,93680.0,93672.0,0.0017116]
[1732044121694,0.023,93677.0,93672.0,0.0017116]
[1732044121963,0.65736255,93676.0,93672.0,0.0017116]
[1732044122178,0.023,93675.0,93672.0,0.0017116]
[1732044122405,0.10906255,93674.0,93672.0,0.0017116]
[1732044122839,0.023,93673.0,93672.0,0.0006116]
[1732044123054,0.5483,93676.0,93672.0,0.0006116]
[1732044123271,0.03546699,93680.0,93672.0,0.0006116]
[1732044123498,0.0751,93707.0,93672.0,0.0006116]
[1732044123729,0.10906255,93706.0,93672.0,0.0006116]
[1732044124199,0.5483,93710.0,93674.0,0.1]
[1732044124416,0.5483,93710.0,93676.0,0.1]
[1732044124642,0.0794,93720.0,93678.0,0.1]
[1732044124872,0.0462567,93726.0,93696.0,0.1]
[1732044124873,0.0008567,93726.0,93696.0,0.1]
[1732044125088,0.10906255,93719.0,93696.0,0.1]
[1732044125779,0.10906255,93719.0,93682.0,0.0801]
[1732044125989,0.16799276,93719.0,93682.0,0.0801]
[1732044126207,0.02,93716.0,93682.0,0.0801]
[1732044126416,0.023,93711.0,93672.0,0.03477384]
[1732044126640,0.023,93709.0,93672.0,0.03477384]
[1732044126846,0.023,93707.0,93672.0,0.03477384]
[1732044127082,0.0983,93705.0,93672.0,0.03477384]
[1732044127310,0.01,93701.0,93672.0,0.03477384]
[1732044127518,0.13206255,93700.0,93672.0,0.03477384]
[1732044127731,0.023,93695.0,93672.0,0.03477384]
[1732044127964,0.002,93696.0,93672.0,0.0006116]
[1732044127965,0.023,93693.0,93672.0,0.0006116]
[1732044128172,0.023,93691.0,93672.0,0.0006116]
[1732044128419,0.023,93689.0,93672.0,0.0006116]
[1732044128661,0.043,93687.0,93672.0,0.0006116]
[1732044128887,0.023,93685.0,93672.0,0.0006116]
[1732044129112,0.023,93683.0,93672.0,0.0006116]
[1732044129346,0.023,93681.0,93672.0,0.0006116]
[1732044129609,0.023,93679.0,93672.0,0.0006116]
[1732044129835,0.023,93677.0,93672.0,0.0006116]
[1732044130031,0.10906255,93676.0,93672.0,0.0006116]
[1732044130491,0.023,93675.0,93672.0,0.0006116]
[1732044130699,0.10906255,93674.0,93672.0,0.0006116]
[1732044131861,0.023,93675.0,93672.0,0.0006116]
[1732044132104,0.03419326,93676.0,93640.0,0.0768]
[1732044132324,0.5483,93692.0,93646.0,0.11]
[1732044132540,0.10906255,93691.0,93648.0,0.1]
[1732044132749,0.10906255,93691.0,93649.0,0.10906255]
[1732044132963,0.10906255,93691.0,93650.0,0.1]
[1732044133174,0.10906255,93691.0,93652.0,0.1]
[1732044133379,0.10906255,93691.0,93654.0,0.1]
[1732044133582,0.10906255,93691.0,93656.0,0.1]
[1732044133800,0.10906255,93691.0,93658.0,0.1]
[1732044134440,0.5483,93692.0,93660.0,0.1]
[1732044134643,0.10906255,93690.0,93660.0,0.1]
[1732044134881,0.5483,93692.0,93661.0,0.10906255]
[1732044135097,0.5483,93692.0,93662.0,0.1]
[1732044135320,0.5483,93692.0,93664.0,0.1]
[1732044135549,0.03452067,93693.0,93664.0,0.20906255]
[1732044135968,0.024,93700.0,93664.0,0.20906255]
[1732044136168,0.023,93698.0,93664.0,0.20906255]
[1732044136388,0.001,93700.0,93666.0,0.1]
[1732044136597,0.001,93700.0,93668.0,0.1]
[1732044136811,0.01,93713.0,93677.0,0.01]
[1732044137013,0.58036255,93712.0,93677.0,0.01]
[1732044137283,0.58036255,93712.0,93681.0,0.01]
[1732044137772,0.58036255,93712.0,93664.0,0.01]
[1732044137773,0.03427493,93718.0,93691.0,0.087]
[1732044137995,0.0008562,93719.0,93691.0,0.087]
[1732044137996,0.10906255,93717.0,93693.0,0.01]
[1732044140281,0.023,93716.0,93693.0,0.01]
[1732044140507,0.023,93714.0,93689.0,0.01]
[1732044140790,0.04605226,93719.0,93674.0,0.01]
[1732044140791,0.023,93706.0,93674.0,0.01]
[1732044141024,0.023,93701.0,93672.0,0.0117124]
[1732044141201,0.01,93697.0,93672.0,0.0017124]
[1732044141435,0.13206255,93696.0,93672.0,0.0017124]
[1732044142551,0.023,93694.0,93672.0,0.0017124]
[1732044142773,0.023,93692.0,93672.0,0.0017124]
[1732044143015,0.023,93690.0,93672.0,0.0017124]
[1732044143243,0.10906255,93689.0,93672.0,0.0017124]
[1732044143468,0.023,93688.0,93672.0,0.0017124]
[1732044143681,0.10906255,93687.0,93672.0,0.0017124]
[1732044143908,0.4713,93694.0,93672.0,0.0017124]
[1732044143909,0.4713,93694.0,93672.0,0.0117124]
[1732044144118,0.4713,93694.0,93672.0,0.0017124]
[1732044144119,0.10906255,93693.0,93672.0,0.0017124]
[1732044145180,0.023,93692.0,93672.0,0.0017124]
[1732044145405,0.023,93690.0,93666.0,0.03354087]
[1732044145628,0.023,93690.0,93654.0,0.1]
[1732044145629,0.023,93688.0,93659.0,0.01]
[1732044145904,0.023,93686.0,93653.0,0.0826]
[1732044146119,0.023,93682.0,93653.0,0.0826]
[1732044146348,0.023,93680.0,93656.0,0.01]
[1732044146581,0.023,93678.0,93654.0,0.1]
[1732044146804,0.023,93676.0,93654.0,0.1]
[1732044148152,0.10906255,93663.0,93646.0,0.00115853]
[1732044148380,0.023,93662.0,93646.0,0.00115853]
[1732044148629,0.023,93660.0,93646.0,0.00115853]
[1732044148886,0.023,93658.0,93646.0,0.00115853]
[1732044149130,0.023,93656.0,93646.0,0.00115853]
[1732044149356,0.023,93654.0,93646.0,0.00115853]
[1732044149567,0.10906255,93653.0,93646.0,0.00115853]
[1732044150543,0.4713,93661.0,93646.0,0.00115853]
[1732044150776,0.10906255,93660.0,93646.0,0.00115853]
[1732044151233,0.4713,93661.0,93646.0,0.00115853]
[1732044151675,0.3833,93661.0,93646.0,0.00115853]
[1732044152114,0.03517007,93662.0,93646.0,0.00115853]
[1732044152325,0.14423262,93662.0,93646.0,0.00115853]
[1732044152565,0.10906255,93662.0,93646.0,0.00115853]
[1732044153475,0.023,93674.0,93646.0,0.00115853]
[1732044153704,0.10906255,93673.0,93646.0,0.00115853]
[1732044153909,0.023,93672.0,93646.0,0.00287013]
[1732044154260,0.01,93658.0,93646.0,0.00287013]
[1732044154486,0.01,93655.0,93646.0,0.00287013]
[1732044154674,0.13206255,93654.0,93646.0,0.00287013]
[1732044155161,0.023,93652.0,93646.0,0.00287013]
[1732044155369,0.10906255,93651.0,93646.0,0.00287013]
[1732044155806,0.023,93650.0,93646.0,0.00287013]
[1732044156047,0.10906255,93649.0,93646.0,0.00287013]
[1732044156484,0.023,93648.0,93646.0,0.00287013]
[1732044156731,0.10906255,93647.0,93646.0,0.00287013]
[1732044156957,0.13206255,93647.0,93646.0,0.00287013]
[1732044162071,0.28516463,93647.0,93646.0,0.00287013]
[1732044162544,0.17838163,93647.0,93646.0,0.00287013]
[1732044163155,0.28516463,93647.0,93646.0,0.00287013]
[1732044163402,0.17638163,93647.0,93646.0,0.00287013]
[1732044163865,0.033,93642.0,93635.0,0.0017118]
[1732044164118,0.10906255,93641.0,93635.0,0.0017118]
[1732044164358,0.023,93640.0,93635.0,0.0017118]
[1732044164581,0.023,93638.0,93635.0,0.0017118]
[1732044164834,0.10906255,93637.0,93635.0,0.0017118]
[1732044165049,0.023,93636.0,93635.0,0.0017118]
[1732044165265,0.13206255,93636.0,93635.0,0.0017118]
[1732044166811,0.04406255,93636.0,93635.0,0.0017118]
[1732044167075,0.54946255,93636.0,93631.0,1e-08]
[1732044167286,0.54946255,93636.0,93591.0,0.0473]
[1732044167287,0.001,93616.0,93591.0,0.0473]
[1732044167505,0.10906255,93615.0,93591.0,0.0004]
[1732044167720,0.10906255,93615.0,93612.0,0.00156391]
[1732044167934,0.10906255,93615.0,93591.0,0.0004]
[1732044169233,0.14304274,93615.0,93591.0,0.0004]
[1732044169684,0.03398019,93615.0,93592.0,0.01]
[1732044170132,0.3833,93619.0,93594.0,0.01]
[1732044170845,0.10906255,93618.0,93594.0,0.01]
[1732044171296,0.01,93639.0,93603.0,0.0497]
[1732044171504,0.17528937,93649.0,93603.0,0.0497]
[1732044171505,0.10906255,93617.0,93603.0,0.0497]
[1732044171740,0.10906255,93617.0,93606.0,0.00170058]
[1732044172182,0.10906255,93617.0,93602.0,0.11]
[1732044172616,0.10906255,93617.0,93606.0,0.00168027]
[1732044173022,0.3833,93624.0,93606.0,0.00168027]
[1732044173279,0.10906255,93623.0,93606.0,0.00168027]
[1732044173713,0.10906255,93623.0,93602.0,0.11]
[1732044173917,0.10906255,93623.0,93602.0,0.01]
[1732044174122,0.10906255,93623.0,93606.0,0.00168383]
[1732044174332,0.10906255,93623.0,93602.0,0.01]
[1732044174563,0.10906255,93623.0,93607.0,0.0016829]
[1732044174793,0.10906255,93623.0,93602.0,0.1]
[1732044174794,0.01,93622.0,93602.0,0.1]
[1732044175034,0.10906255,93621.0,93608.0,0.00168198]
[1732044175240,0.10906255,93621.0,93606.0,0.00168159]
[1732044175449,0.10906255,93621.0,93609.0,0.0016779]
[1732044175698,0.10906255,93621.0,93596.0,0.01]
[1732044176352,0.10906255,93621.0,93591.0,0.0004]
[1732044176353,0.01,93616.0,93591.0,0.0004]
[1732044176572,0.01,93609.0,93591.0,0.0004]
[1732044176783,0.10906255,93608.0,93591.0,0.0004]
[1732044176996,0.01,93607.0,93591.0,0.0004]
[1732044177212,0.10906255,93606.0,93591.0,0.0004]
[1732044178073,0.023,93619.0,93591.0,0.0004]
[1732044178296,0.10906255,93618.0,93591.0,0.0004]
[1732044179232,0.02828821,93619.0,93603.0,0.0828]
[1732044179464,0.02828821,93619.0,93606.0,0.0455]
[1732044179703,0.0008566,93640.0,93611.0,0.01]
[1732044179912,0.10906255,93639.0,93612.0,0.01]
[1732044180135,0.10906255,93639.0,93613.0,0.01]
[1732044180408,0.0008566,93640.0,93613.0,0.01]
[1732044180614,0.13781935,93640.0,93622.0,0.01]
[1732044180845,0.10991915,93640.0,93622.0,0.01]
[1732044181694,0.02762029,93646.0,93621.0,0.01]
[1732044181919,0.10906255,93645.0,93622.0,0.01]
[1732044183894,0.10906255,93645.0,93610.0,0.02891893]
[1732044184098,0.10906255,93645.0,93611.0,0.10906255]
[1732044184319,0.10906255,93645.0,93611.0,0.11072607]
[1732044185010,0.02839075,93651.0,93612.0,0.0831]
[1732044185213,0.02839075,93651.0,93618.0,0.0478]
[1732044185445,0.3833,93666.0,93619.0,0.19216255]
[1732044185653,0.10906255,93661.0,93619.0,0.19380422]
[1732044185876,0.10906255,93661.0,93620.0,0.1]
[1732044186138,0.10906255,93661.0,93622.0,0.1]
[1732044186357,0.01374113,93660.0,93624.0,0.1]
[1732044186567,0.10906255,93659.0,93624.0,0.10906255]
[1732044186782,0.10906255,93659.0,93625.0,0.10160997]
[1732044188690,0.10906255,93659.0,93625.0,0.00160997]
[1732044189112,0.10906255,93659.0,93620.0,0.12793023]
[1732044189325,0.0290913,93662.0,93626.0,0.00159188]
[1732044189572,0.0290913,93662.0,93622.0,0.1]
[1732044189573,0.0290913,93662.0,93630.0,0.01]
[1732044189783,0.0290913,93662.0,93639.0,0.1273]
[1732044189784,0.0008563,93662.0,93639.0,0.1273]
[1732044190003,3e-07,93662.0,93649.0,0.0756]
[1732044190246,3e-07,93662.0,93650.0,0.20906255]
[1732044190482,0.001,93700.0,93659.0,0.0756]
[1732044190692,0.001,93700.0,93660.0,0.26646255]
[1732044190897,0.001,93700.0,93661.0,0.01]
[1732044191133,0.001,93700.0,93663.0,0.1]
[1732044191374,0.001,93700.0,93664.0,0.10906255]
[1732044191595,0.02800523,93700.0,93665.0,0.1]
[1732044191819,0.001,93700.0,93666.0,0.10906255]
[1732044192036,0.001,93700.0,93667.0,0.1]
[1732044192248,0.001,93700.0,93668.0,0.10906255]
[1732044192461,0.001,93700.0,93669.0,0.1796]
[1732044192687,0.001,93700.0,93682.0,0.1]
[1732044192930,0.001,93700.0,93682.0,0.20906255]
[1732044193668,0.001,93700.0,93684.0,0.1]
[1732044193875,0.001,93700.0,93686.0,0.1]
[1732044194078,0.001,93700.0,93685.0,0.0755]
[1732044196832,1.91516023,93725.0,93689.0,0.01]
[1732044197063,0.10906255,93724.0,93693.0,0.01]
[1732044197295,0.10906255,93724.0,93697.0,0.01]
[1732044197924,0.10906255,93724.0,93695.0,0.01]
[1732044198214,0.001,93718.0,93683.0,0.01]
[1732044198449,0.13206255,93717.0,93683.0,0.01]
[1732044198899,0.13206255,93717.0,93678.0,0.01]
[1732044199108,0.002,93713.0,93675.0,0.01]
[1732044199326,0.13206255,93712.0,93675.0,0.01]
[1732044199548,0.023,93710.0,93675.0,0.01]
[1732044199751,0.10906255,93709.0,93675.0,0.01]
[1732044199958,0.10906255,93709.0,93679.0,0.01]
[1732044200165,0.10906255,93709.0,93687.0,0.01]
[1732044200826,0.10906255,93709.0,93680.0,0.1]
[1732044201063,0.10906255,93709.0,93680.0,0.11]
[1732044201280,0.10906255,93709.0,93676.0,0.01]
[1732044202648,0.10906255,93709.0,93679.0,0.0017098]
[1732044203091,0.10906255,93709.0,93685.0,0.01]
[1732044203301,0.01,93718.0,93681.0,0.1]
[1732044203510,0.10906255,93708.0,93682.0,0.01]
[1732044206833,0.10906255,93708.0,93679.0,0.0017098]
[1732044207553,0.11996881,93708.0,93679.0,0.0017098]
[1732044207966,0.10906255,93708.0,93679.0,0.0017098]
[1732044208202,0.129715,93707.0,93679.0,0.0017098]
[1732044208421,0.002,93705.0,93679.0,0.0017098]
[1732044208643,0.10906255,93704.0,93679.0,0.0017098]
[1732044208887,0.023,93681.0,93645.0,0.0795]
[1732044209132,0.01,93682.0,93645.0,0.0895]
[1732044209133,0.023,93679.0,93645.0,0.0895]
[1732044209357,0.213504,93676.0,93639.0,0.0465]
[1732044209563,0.023,93671.0,93638.0,0.02713668]
[1732044209795,0.023,93660.0,93625.0,0.0465]
[1732044210669,0.023,93658.0,93625.0,0.0465]
[1732044210865,0.023,93656.0,93625.0,0.0465]
[1732044211066,0.023,93654.0,93618.0,0.01]
[1732044211283,0.023,93652.0,93618.0,0.01]
[1732044211499,0.0754,93649.0,93610.0,0.0795]
[1732044211735,0.0497,93656.0,93617.0,0.01]
[1732044211736,0.10906255,93648.0,93617.0,0.01]
[1732044211979,0.10906255,93648.0,93610.0,0.0795]
[1732044212182,0.10906255,93648.0,93614.0,0.01]
[1732044212389,0.13084651,93648.0,93610.0,0.0795]
[1732044212597,0.22584455,93648.0,93610.0,0.0795]
[1732044212826,0.106784,93647.0,93610.0,0.08027355]
[1732044213026,0.002,93641.0,93610.0,0.08027355]
[1732044213260,0.10906255,93631.0,93610.0,0.00077355]
[1732044213464,0.213606,93630.0,93610.0,0.00077355]
[1732044213682,0.320416,93628.0,93610.0,0.00077355]
[1732044213891,0.106808,93626.0,93610.0,0.00077355]
[1732044214117,0.10906255,93625.0,93610.0,0.00077355]
[1732044214632,0.002,93620.0,93591.0,0.0004]
[1732044214846,0.09906255,93619.0,93591.0,0.0004]
[1732044216765,0.10682,93616.0,93591.0,0.0004]
[1732044216967,0.10906255,93615.0,93592.0,0.00154915]
[1732044217184,0.10906255,93615.0,93591.0,0.0004]
[1732044218569,0.10906255,93615.0,93592.0,0.00155006]
[1732044218983,0.10906255,93615.0,93591.0,0.0004]
[1732044219431,0.005,93600.0,93591.0,0.0004]
[1732044220195,0.10906255,93599.0,93591.0,0.0004]
[1732044223285,0.03292372,93600.0,93591.0,0.0004]
[1732044225222,0.10906255,93599.0,93591.0,0.0004]
[1732044225791,0.03292372,93600.0,93591.0,0.0004]
[1732044226006,0.10906255,93599.0,93591.0,0.0004]
[1732044226223,0.10906255,93599.0,93591.0,0.0021112]
[1732044226451,0.106842,93596.0,93591.0,0.0021112]
[1732044226670,0.002,93597.0,93591.0,0.0021112]
[1732044226671,0.02106255,93595.0,93591.0,0.0021112]
[1732044226879,0.002,93592.0,93591.0,0.0021112]
[1732044227092,0.11106255,93592.0,93591.0,0.0021112]
[1732044227929,0.11106255,93592.0,93585.0,0.0017098]
[1732044227930,0.10885,93589.0,93588.0,0.00031012]
[1732044228135,0.12106255,93589.0,93588.0,0.00031012]
[1732044228341,0.11906255,93589.0,93588.0,0.00031012]
[1732044228571,0.12106255,93589.0,93588.0,0.00031012]
[1732044228782,0.12106255,93589.0,93555.0,0.0212]
[1732044228783,0.213702,93588.0,93555.0,0.0212]
[1732044228986,0.213711,93584.0,93555.0,0.0212]
[1732044229209,0.213702,93588.0,93555.0,0.0212]
[1732044229210,0.002,93577.0,93555.0,0.0212]
[1732044229533,0.002,93572.0,93555.0,0.0212]
[1732044229700,0.11106255,93572.0,93555.0,0.0212]
[1732044230837,0.002,93556.0,93555.0,0.0212]
[1732044231065,0.002,93553.0,93536.0,0.0027]
[1732044231296,0.10906255,93552.0,93536.0,0.0027]
[1732044231551,0.002,93537.0,93536.0,0.0027]
[1732044231795,0.3833,93551.0,93536.0,0.0027]
[1732044232020,0.10906255,93550.0,93536.0,0.0027]
[1732044232284,0.02821976,93556.0,93536.0,0.0027]
[1732044232520,0.002,93561.0,93537.0,0.0776]
[1732044232755,0.002,93556.0,93537.0,0.0776]
[1732044232989,0.002,93551.0,93537.0,0.0776]
[1732044233233,0.002,93545.0,93536.0,0.0027]
[1732044233936,0.002,93546.0,93536.0,0.0027]
[1732044234164,0.10906255,93550.0,93536.0,0.0027]
[1732044234400,0.10906255,93550.0,93481.0,0.002]
[1732044234401,0.002,93530.0,93500.0,0.0483]
[1732044234632,0.10906255,93529.0,93500.0,0.0483]
[1732044234877,0.10406255,93529.0,93502.0,0.02785131]
[1732044235324,0.0956998,93529.0,93502.0,0.02785131]
[1732044235541,0.0956998,93529.0,93503.0,0.1]
[1732044236912,0.0956998,93529.0,93502.0,0.02785131]
[1732044237114,0.0956998,93529.0,93503.0,0.1]
[1732044237564,0.11867512,93529.0,93503.0,0.1]
[1732044238223,0.11867512,93529.0,93502.0,0.02785131]
[1732044238671,0.02297532,93529.0,93517.0,0.0509867]
[1732044238910,0.01,93543.0,93517.0,0.0509867]
[1732044239156,0.002,93538.0,93518.0,0.00155444]
[1732044239369,0.10906255,93537.0,93517.0,0.0057867]
[1732044240275,0.01,93543.0,93522.0,0.01]
[1732044240485,0.01,93543.0,93518.0,0.083]
[1732044240486,0.01,93543.0,93523.0,0.00156391]
[1732044240690,0.002,93538.0,93523.0,0.00156391]
[1732044240898,0.002,93538.0,93518.0,0.083]
[1732044241116,0.11106255,93538.0,93524.0,0.00155922]
[1732044241358,0.10906255,93537.0,93518.0,0.083]
[1732044241596,0.02106255,93537.0,93518.0,0.083]
[1732044241822,0.02106255,93537.0,93519.0,0.00156036]
[1732044243120,0.3833,93546.0,93524.0,0.01]
[1732044243794,0.10906255,93545.0,93525.0,0.00156737]
[1732044244241,0.40624531,93546.0,93522.0,0.01]
[1732044244451,0.02294531,93546.0,93529.0,0.01]
[1732044244670,0.02294531,93546.0,93528.0,0.0465]
[1732044244887,0.002,93554.0,93528.0,0.0465]
[1732044245117,0.002,93554.0,93535.0,0.01]
[1732044245320,0.002,93568.0,93536.0,0.0789]
[1732044245527,0.01,93577.0,93545.0,0.01]
[1732044245739,0.01,93582.0,93546.0,0.10906255]
[1732044245968,0.10906255,93581.0,93554.0,0.01]
[1732044246186,0.106862,93579.0,93547.0,0.1]
[1732044246413,0.002,93572.0,93547.0,0.20906255]
[1732044246632,0.10906255,93578.0,93548.0,0.01]
[1732044247079,0.03327756,93577.0,93543.0,0.02194177]
[1732044247292,0.10906255,93576.0,93543.0,0.02194177]
[1732044247509,0.10806255,93576.0,93542.0,0.01]
[1732044247712,0.002,93566.0,93542.0,0.01]
[1732044248381,0.002,93570.0,93542.0,0.01]
[1732044248596,0.10906255,93570.0,93542.0,0.01]
[1732044249057,0.11106255,93570.0,93542.0,0.01]
[1732044249708,0.10906255,93569.0,93536.0,0.0789]
[1732044249928,0.002,93568.0,93536.0,0.0789]
[1732044250217,0.10906255,93567.0,93536.0,0.0789]
[1732044250436,0.223737,93573.0,93524.0,0.0008566]
[1732044250437,0.0017132,93554.0,93524.0,0.0008566]
[1732044250633,0.01,93548.0,93531.0,0.02252326]
[1732044250866,0.10906255,93547.0,93524.0,0.0008566]
[1732044251114,0.3833,93553.0,93531.0,0.01]
[1732044251332,0.3833,93553.0,93524.0,0.0008566]
[1732044251333,0.02455715,93554.0,93541.0,0.01]
[1732044251569,0.0017132,93554.0,93549.0,0.0758]
[1732044252441,0.0017132,93554.0,93534.0,0.0801]
[1732044252683,0.10906255,93553.0,93534.0,0.0801]
[1732044252904,0.002,93542.0,93534.0,0.0801]
[1732044253111,0.10906255,93553.0,93521.0,0.0801]
[1732044253112,0.49236255,93553.0,93521.0,0.0801]
[1732044253332,0.002,93546.0,93521.0,0.0801]
[1732044253541,0.10906255,93545.0,93521.0,0.0801]
[1732044254197,0.10906255,93545.0,93511.0,0.0904]
[1732044254198,0.11106255,93545.0,93511.0,0.0904]
[1732044254413,0.002,93541.0,93511.0,0.0904]
[1732044254632,0.10906255,93540.0,93518.0,0.1]
[1732044254863,0.002,93541.0,93518.0,0.1]
[1732044255095,0.002,93538.0,93511.0,0.0804]
[1732044255330,0.002,93534.0,93511.0,0.0804]
[1732044255585,0.01,93530.0,93511.0,0.0804]
[1732044255808,0.10906255,93529.0,93511.0,0.0804]
[1732044256427,0.002,93518.0,93511.0,0.0804]
[1732044256691,0.01,93531.0,93511.0,0.0804]
[1732044256934,0.02270028,93529.0,93511.0,0.0804]
[1732044257148,0.10906255,93540.0,93511.0,0.0804]
[1732044257373,0.02267559,93535.0,93511.0,0.0804]
[1732044257577,0.10906255,93540.0,93511.0,0.0804]
[1732044258030,0.01,93527.0,93511.0,0.0804]
[1732044258862,0.01,93537.0,93511.0,0.0804]
[1732044259069,0.49236255,93539.0,93511.0,0.0804]
[1732044259070,0.01,93530.0,93517.0,0.1037867]
[1732044259277,0.11906255,93530.0,93517.0,0.1037867]
[1732044260161,0.01,93515.0,93486.0,0.01]
[1732044260396,0.213875,93513.0,93481.0,0.0806]
[1732044260612,0.01,93503.0,93481.0,0.0806]
[1732044261260,0.49236255,93502.0,93481.0,0.0806]
[1732044261498,0.05023625,93501.0,93481.0,0.0806]
[1732044261701,0.10906255,93500.0,93471.0,0.1218]
[1732044262144,0.3833,93502.0,93473.0,0.01]
[1732044262372,0.01,93507.0,93483.0,0.002]
[1732044262586,0.01,93516.0,93482.0,0.01]
[1732044262842,0.01,93516.0,93471.0,0.1218]
[1732044262843,0.02192625,93508.0,93481.0,0.01]
[1732044263072,0.1,93514.0,93481.0,0.01]
[1732044263319,0.1,93512.0,93481.0,0.01]
[1732044263553,0.02208344,93518.0,93492.0,0.0806]
[1732044263757,0.10906255,93517.0,93492.0,0.0806]
[1732044263963,0.21599455,93517.0,93492.0,0.0806]
[1732044264139,0.10906255,93517.0,93492.0,0.0806]
[1732044264389,0.10906255,93517.0,93492.0,0.08125933]
[1732044264771,0.106933,93516.0,93492.0,0.08125933]
[1732044265003,0.01,93513.0,93492.0,0.08125933]
[1732044265210,0.01,93511.0,93492.0,0.00065933]
[1732044265450,0.10906255,93510.0,93492.0,0.00065933]
[1732044265684,0.607183,93509.0,93492.0,0.00065933]
[1732044265910,0.106944,93507.0,93492.0,0.00065933]
[1732044266114,0.10906255,93506.0,93492.0,0.00065933]
[1732044266327,0.213897,93503.0,93492.0,0.00065933]
[1732044266542,0.106952,93500.0,93492.0,0.00065933]
[1732044266751,0.10906255,93499.0,93492.0,0.00065933]
[1732044267183,0.01,93497.0,93492.0,0.00065933]
[1732044267356,0.10906255,93496.0,93492.0,0.00065933]
[1732044267715,0.106964,93489.0,93471.0,0.0461]
[1732044268033,0.26860196,93495.0,93471.0,0.0461]
[1732044268251,0.106964,93490.0,93471.0,0.0461]
[1732044268458,0.10906255,93494.0,93471.0,0.0461]
[1732044268459,0.213922,93492.0,93471.0,0.0004]
[1732044268663,0.10906255,93494.0,93471.0,0.0004]
[1732044268864,0.106962,93491.0,93471.0,0.0004]